fUSD/lending_fUSD_20251112
["ID","MTS","AMOUNT","RATE_DAILY","PERIOD"]
[393787973,1762987936117,250.0,0.00040612,120]
[393787974,1762987936389,250.0,0.00040612,120]
[393787975,1762987936584,151.0,0.00040612,120]
[393787976,1762987936648,250.0,0.00040612,120]
[393787977,1762987937000,250.0,0.00040612,120]
[393787978,1762987937184,151.0,0.00040612,120]
[393787979,1762987937248,250.0,0.00040612,120]
[393787980,1762987937900,250.0,0.00040612,120]
[393787981,1762987938644,250.0,0.00040612,120]
[393787982,1762987939284,250.0,0.00040612,120]
[393787983,1762987939911,250.0,0.00040612,120]
[393787984,1762987940547,250.0,0.00040612,120]
[393787985,1762987944367,200.0,0.00040612,120]
[393788117,1762988153139,-150.0,0.00029603,2]
[393788123,1762988242260,286.48103143,0.00040612,120]
[393788128,1762988298048,160.0,0.00029603,2]
[393788133,1762988348894,7216.359177,7.945e-05,2]
[393788134,1762988408494,1540.264578,7.945e-05,2]
[393788141,1762988659699,-168.06,0.00029736,2]
[393788160,1762988723520,200.4,0.00029,2]
[393788170,1762988791092,-300.0,0.00033057,119]
[393788171,1762988791113,-128.44309517,0.0003422,119]
[393788172,1762988825147,277.35679052,0.00040615,30]
[393788173,1762988827656,250.0,0.00040615,120]
[393788174,1762988828253,250.0,0.00040615,120]
[393788175,1762988828873,250.0,0.00040615,120]
[393788176,1762988829523,250.0,0.00040615,120]
[393788177,1762988829670,151.0,0.00040615,120]
[393788178,1762988829876,250.0,0.00040615,120]
[393788179,1762988829949,151.0,0.00040615,120]
[393788180,1762988830027,151.0,0.00040615,120]
[393788181,1762988830148,250.0,0.00040615,120]
[393788182,1762988830475,250.0,0.00040615,120]
[393788183,1762988830554,151.0,0.00040615,120]
[393788184,1762988830667,151.0,0.00040615,120]
[393788185,1762988830750,250.0,0.00040615,120]
[393788186,1762988831072,250.0,0.00040615,120]
[393788187,1762988831144,151.0,0.00040615,120]
[393788188,1762988831283,151.0,0.00040615,120]
[393788189,1762988831376,250.0,0.00040615,120]
[393788190,1762988831670,250.0,0.00040615,120]
[393788191,1762988831743,151.0,0.00040615,120]
[393788192,1762988831893,151.0,0.00040615,120]
[393788193,1762988831986,250.0,0.00040615,120]
[393788194,1762988832318,151.0,0.00040615,120]
[393788195,1762988832900,151.0,0.00040615,120]
[393788196,1762988832975,250.0,0.00040615,120]
[393788197,1762988833066,250.0,0.00040615,120]
[393788198,1762988833160,151.0,0.00040615,120]
[393788199,1762988833241,151.0,0.00040615,120]
[393788200,1762988833323,322.6107,0.00040615,120]
[393788201,1762988833410,250.0,0.00040615,120]
[393788202,1762988833567,151.0,0.00040615,120]
[393788204,1762988833725,151.0,0.00040615,120]
[393788205,1762988834060,250.0,0.00040615,120]
[393788206,1762988834404,151.0,0.00040615,120]
[393788207,1762988834659,151.0,0.00040615,120]
[393788208,1762988834759,250.0,0.00040615,120]
[393788209,1762988835165,151.0,0.00040615,120]
[393788210,1762988835307,151.0,0.00040615,120]
[393788211,1762988835382,250.0,0.00040615,120]
[393788212,1762988835848,151.0,0.00040615,120]
[393788213,1762988835942,250.0,0.00040615,120]
[393788214,1762988836032,151.0,0.00040615,120]
[393788215,1762988836105,250.0,0.00040615,120]
[393788216,1762988836432,151.0,0.00040615,120]
[393788217,1762988836512,250.0,0.00040615,120]
[393788218,1762988836593,151.0,0.00040615,120]
[393788219,1762988836670,250.0,0.00040615,120]
[393788220,1762988837078,250.0,0.00040615,120]
[393788221,1762988837749,250.0,0.00040615,120]
[393788222,1762988838419,250.0,0.00040615,120]
[393788223,1762988838973,250.0,0.00040615,120]
[393788224,1762988839585,250.0,0.00040615,120]
[393788225,1762988840187,250.0,0.00040615,120]
[393788226,1762988840832,250.0,0.00040615,120]
[393788227,1762988841478,250.0,0.00040615,120]
[393788228,1762988843137,200.0,0.00040615,120]
[393788242,1762989032091,-300.0,0.00034792,119]
[393788243,1762989032100,-185.03203278,0.00036097,2]
[393788244,1762989032112,-544.9979986,0.00036097,2]
[393788245,1762989032125,-518.56758735,0.00036097,2]
[393788246,1762989032138,-912.54784527,0.00036097,2]
[393788247,1762989032147,-159.29689938,0.00036442,2]
[393788248,1762989032157,-116.15525535,0.00036542,7]
[393788249,1762989032221,-33.84474465,0.00036542,7]
[393788250,1762989032230,-1000.0,0.00036563,30]
[393788251,1762989032239,-1293.99707333,0.00036563,30]
[393788252,1762989032249,-150.0,0.00036644,7]
[393788253,1762989032260,-150.0,0.00036745,7]
[393788254,1762989032269,-150.0,0.00036847,7]
[393788255,1762989032279,-150.0,0.00036948,7]
[393788256,1762989032288,-1053.0,0.00037,120]
[393788257,1762989032298,-150.0,0.0003705,7]
[393788258,1762989032307,-166.66,0.00037148,30]
[393788259,1762989032316,-150.0,0.00037152,7]
[393788260,1762989032326,-1044.59712901,0.00037175,5]
[393788261,1762989032336,-150.0,0.00037253,7]
[393788262,1762989032345,-1600.0,0.00037271,3]
[393788263,1762989032355,-300.0,0.00037271,3]
[393788264,1762989032364,-1084.0,0.00037272,3]
[393788265,1762989032374,-400.0,0.00037272,3]
[393788266,1762989032384,-562.0,0.00037274,2]
[393788267,1762989032394,-574.0,0.00037275,2]
[393788268,1762989032403,-1317.0,0.00037275,2]
[393788269,1762989032412,-1597.0,0.00037275,2]
[393788270,1762989032422,-821.0,0.00037275,2]
[393788271,1762989032432,-813.0,0.00037275,2]
[393788272,1762989032442,-1274.0,0.00037275,2]
[393788273,1762989032452,-500.0,0.000373,5]
[393788275,1762989032462,-150.0,0.00037355,7]
[393788277,1762989032472,-150.0,0.00037456,7]
[393788279,1762989032481,-150.0,0.00037558,7]
[393788281,1762989032490,-300.0,0.00037642,119]
[393788283,1762989032500,-300.0,0.00037642,119]
[393788285,1762989032509,-300.0,0.00037642,119]
[393788286,1762989032519,-150.0,0.00037659,7]
[393788287,1762989032531,-150.0,0.00037761,7]
[393788288,1762989032541,-150.0,0.00037862,7]
[393788289,1762989032550,-166.66,0.0003793,30]
[393788290,1762989032559,-150.0,0.00037964,7]
[393788291,1762989032570,-150.0,0.00038065,7]
[393788292,1762989032580,-2000.0,0.000381,2]
[393788293,1762989032590,-150.0,0.00038167,7]
[393788294,1762989032599,-927.0,0.00038228,2]
[393788295,1762989032610,-2089.48,0.00038239,2]
[393788296,1762989032619,-150.0,0.00038268,7]
[393788297,1762989032629,-376.22297712,0.00038272,119]
[393788298,1762989032638,-222.0,0.00038352,2]
[393788299,1762989032648,-150.0,0.0003837,7]
[393788300,1762989032657,-222.0,0.00038461,2]
[393788301,1762989032667,-150.0,0.00038471,7]
[393788302,1762989032676,-150.0,0.00038573,7]
[393788303,1762989032686,-150.0,0.00038674,7]
[393788304,1762989032696,-1037.499,0.00038712,52]
[393788305,1762989032705,-166.66,0.00038712,30]
[393788306,1762989032715,-1852.42,0.0003874,2]
[393788307,1762989032724,-150.0,0.00038776,7]
[393788308,1762989032734,-222.0,0.00038825,2]
[393788309,1762989032744,-1044.59712901,0.00038851,5]
[393788310,1762989032754,-150.0,0.00038877,7]
[393788311,1762989032763,-1966.53,0.00038885,2]
[393788312,1762989032773,-1117.39214498,0.0003895,2]
[393788313,1762989032783,-74262.94,0.00038951,2]
[393788314,1762989032792,-500.0,0.00038973,5]
[393788315,1762989032801,-555.54989948,0.00038973,5]
[393788316,1762989032811,-500.0,0.00038973,5]
[393788317,1762989032820,-150.0,0.00038979,7]
[393788318,1762989032830,-222.0,0.00039044,120]
[393788319,1762989032839,-150.0,0.0003908,7]
[393788320,1762989032849,-150.0,0.00039182,7]
[393788321,1762989032859,-222.0,0.0003923,7]
[393788322,1762989032868,-4204.59,0.00039253,2]
[393788323,1762989032878,-150.0,0.00039283,7]
[393788324,1762989032887,-999.0,0.00039349,3]
[393788325,1762989032897,-150.0,0.00039385,7]
[393788326,1762989032906,-2007.77,0.00039404,2]
[393788327,1762989032915,-300.0,0.00039434,2]
[393788328,1762989032925,-580.162,0.00039454,2]
[393788329,1762989032935,-1189.0,0.00039454,2]
[393788330,1762989032944,-6666.0,0.00039454,2]
[393788331,1762989032953,-2143.0,0.00039454,2]
[393788332,1762989032963,-560.0,0.00039454,2]
[393788333,1762989032973,-150.0,0.00039486,7]
[393788334,1762989032982,-166.66,0.00039494,30]
[393788335,1762989032992,-6319.25,0.00039506,2]
[393788336,1762989033001,-517.85474684,0.00039521,5]
[393788337,1762989033011,-494.76897243,0.0003955,5]
[393788338,1762989033020,-500.0,0.0003955,5]
[393788339,1762989033030,-505.85898911,0.0003955,5]
[393788340,1762989033040,-500.0,0.0003955,5]
[393788341,1762989033049,-500.0,0.0003955,5]
[393788342,1762989033059,-551.29,0.00039574,2]
[393788343,1762989033068,-1000.0,0.00039574,2]
[393788344,1762989033077,-150.0,0.00039577,2]
[393788345,1762989033087,-150.0,0.00039588,7]
[393788346,1762989033097,-150.0,0.00039689,7]
[393788347,1762989033106,-150.0,0.00039791,7]
[393788348,1762989033116,-187.0,0.0003987,5]
[393788349,1762989033125,-150.0,0.00039892,7]
[393788350,1762989033134,-400.0,0.000399,14]
[393788351,1762989033143,-150.0,0.00039994,7]
[393788352,1762989033152,-900.0,0.0004,14]
[393788353,1762989033162,-2240.0,0.00040022,5]
[393788354,1762989033172,-1000.0,0.0004009,2]
[393788355,1762989033181,-150.0,0.00040095,7]
[393788356,1762989033190,-7854.26181078,0.00040097,15]
[393788357,1762989033200,-1400.0,0.000401,14]
[393788358,1762989033209,-7854.26181074,0.00040143,15]
[393788359,1762989033218,-1000.0,0.00040155,2]
[393788360,1762989033227,-27891.1023,0.00040155,2]
[393788361,1762989033236,-7854.26181074,0.0004019,15]
[393788362,1762989033246,-150.0,0.00040197,7]
[393788363,1762989033255,-1249.63166,0.000402,3]
[393788364,1762989033265,-1900.0,0.000402,14]
[393788365,1762989033274,-7854.26181074,0.00040236,15]
[393788366,1762989033284,-239.56426196,0.00040252,5]
[393788367,1762989033293,-574.0,0.00040275,2]
[393788368,1762989033303,-1317.0,0.00040275,2]
[393788369,1762989033312,-1597.0,0.00040275,2]
[393788370,1762989033321,-821.0,0.00040275,2]
[393788371,1762989033331,-813.0,0.00040275,2]
[393788372,1762989033340,-1274.0,0.00040275,2]
[393788373,1762989033350,-166.66,0.00040276,30]
[393788374,1762989033360,-7854.26181074,0.00040283,15]
[393788375,1762989033369,-2500.0,0.00040288,2]
[393788376,1762989033379,-500.0,0.00040289,2]
[393788377,1762989033388,-2195.3,0.0004029,30]
[393788378,1762989033398,-6064.69,0.0004029,2]
[393788379,1762989033408,-10062.01,0.0004029,2]
[393788380,1762989033417,-156.85525903,0.00040292,15]
[393788381,1762989033427,-2269.0,0.00040298,5]
[393788382,1762989033437,-150.0,0.00040298,7]
[393788383,1762989033447,-2400.0,0.000403,14]
[393788384,1762989033456,-168.81754014,0.00040302,28]
[393788385,1762989033466,-209.63650846,0.00040302,28]
[393788386,1762989033476,-18198.32171587,0.00040302,15]
[393788387,1762989033486,-1739.5898,0.00040302,2]
[393788388,1762989033495,-173.72989842,0.00040315,2]
[393788389,1762989033505,-209.63650846,0.00040325,28]
[393788390,1762989033514,-155.86110947,0.00040325,28]
[393788391,1762989033528,-18198.32171583,0.00040326,15]
[393788392,1762989033538,-7854.26181074,0.00040329,15]
[393788393,1762989033547,-156.855259,0.00040337,15]
[393788394,1762989033558,-6302.2969328,0.00040339,4]
[393788395,1762989033567,-500.0,0.00040345,2]
[393788396,1762989033577,-18198.32171583,0.00040349,15]
[393788397,1762989033586,-173.72989841,0.00040355,2]
[393788398,1762989033596,-12604.5938656,0.00040363,4]
[393788399,1762989033609,-6302.2969328,0.00040366,4]
[393788400,1762989033619,-18198.32171583,0.00040373,15]
[393788401,1762989033628,-7854.26181074,0.00040376,15]
[393788402,1762989033638,-487.5866993,0.00040379,2]
[393788403,1762989033648,-156.855259,0.00040381,15]
[393788404,1762989033658,-300.0,0.00040384,2]
[393788405,1762989033668,-15755.742332,0.00040387,4]
[393788406,1762989033677,-155.86110945,0.00040388,28]
[393788407,1762989033687,-11108.09596775,0.00040392,4]
[393788408,1762989033700,-17918.79692531,0.00040392,4]
[393788411,1762989033711,-335.349535,0.00040392,4]
[393788843,1762989038204,-435.68171857,0.00039454,2]
[393788844,1762989038216,-2775.68573041,0.00039454,2]
[393788845,1762989038265,-1975.94232789,0.00039454,2]
[393788846,1762989038329,-1294.69022313,0.00039454,2]
[393788847,1762989038339,-15105.30977687,0.00040392,4]
[393788859,1762989040212,-153.0,0.0004,30]
[393788860,1762989040222,-200.69976327,0.00040392,4]
[393788861,1762989040279,-8750.65500843,0.00040392,4]
[393788862,1762989040291,-8947.21879473,0.00040392,4]
[393788863,1762989040302,-8943.78386462,0.00040392,4]
[393788864,1762989040315,-9077.54866152,0.00040392,4]
[393788865,1762989040325,-8943.84023489,0.00040392,4]
[393788866,1762989040349,-3140.00154109,0.00040392,4]
[393788867,1762989040462,-5214.30238492,0.00040392,4]
[393788868,1762989040472,-32292.45793641,0.00040392,4]
[393788869,1762989040528,-1079.89592929,0.00040392,4]
[393788870,1762989040538,-173.72989841,0.00040395,2]
[393788871,1762989040547,-2674.1969519,0.00040397,15]
[393788872,1762989040558,-15524.12476393,0.00040397,15]
[393788873,1762989040569,-150.0,0.000404,7]
[393788874,1762989040579,-1249.63166,0.000404,4]
[393788875,1762989040589,-400.0,0.000404,14]
[393788876,1762989040599,-500.0,0.00040401,2]
[393788877,1762989040609,-208577.211661,0.00040402,4]
[393788878,1762989040618,-150.25,0.00040402,2]
[393788879,1762989040627,-2162.0,0.00040403,7]
[393788880,1762989040637,-300.0,0.00040404,2]
[393788881,1762989040646,-16686.1769328,0.00040409,4]
[393788882,1762989040656,-8343.08846642,0.0004041,4]
[393788883,1762989040665,-500.0,0.00040411,20]
[393788884,1762989040676,-500.0,0.00040411,20]
[393788885,1762989040685,-500.0,0.00040411,20]
[393788886,1762989040695,-500.0,0.00040411,20]
[393788887,1762989040704,-500.0,0.00040411,20]
[393788888,1762989040713,-500.0,0.00040411,7]
[393788890,1762989040722,-500.0,0.00040411,7]
[393788892,1762989040731,-199.0,0.00040411,7]
[393788894,1762989040741,-500.0,0.00040411,2]
[393788896,1762989040750,-183.69568692,0.00040411,20]
[393788898,1762989040760,-420000.0,0.00040412,2]
[393788900,1762989040769,-8343.08846642,0.00040415,4]
[393788902,1762989040778,-649.44,0.00040419,30]
[393788904,1762989040787,-18198.32171583,0.0004042,15]
[393788906,1762989040797,-7854.26181074,0.00040422,15]
[393788907,1762989040806,-500.0,0.00040425,2]
[393788910,1762989040815,-500.0,0.00040425,2]
[393788912,1762989040825,-156.855259,0.00040426,15]
[393788913,1762989040834,-500.0,0.00040428,2]
[393788915,1762989040844,-300.0,0.00040429,2]
[393788917,1762989040854,-500.0,0.00040435,2]
[393788918,1762989040864,-173.72989841,0.00040435,2]
[393788919,1762989040873,-18198.32171583,0.00040444,15]
[393788920,1762989040883,-1010.0,0.00040451,2]
[393788921,1762989040892,-155.86110945,0.00040451,28]
[393788922,1762989040902,-18198.32171583,0.00040468,15]
[393788923,1762989040912,-7854.26181074,0.00040469,15]
[393788924,1762989040921,-156.855259,0.0004047,15]
[393788925,1762989040931,-500.0,0.00040473,5]
[393788926,1762989040942,-300.0,0.00040473,2]
[393788927,1762989040952,-173.72989841,0.00040475,2]
[393788928,1762989040961,-18198.32171583,0.00040491,15]
[393788929,1762989040970,-400.0,0.000405,14]
[393788930,1762989040980,-350.77235348,0.000405,120]
[393788931,1762989040990,-150.0,0.00040501,7]
[393788932,1762989040999,-151.0,0.00040502,14]
[393788933,1762989041008,-300.0,0.00040505,2]
[393788934,1762989041017,-166.87321661,0.00040512,14]
[393788935,1762989041026,-155.86110945,0.00040514,28]
[393788936,1762989041036,-500.0,0.00040515,30]
[393788937,1762989041046,-500.0,0.00040515,30]
[393788938,1762989041055,-500.0,0.00040515,30]
[393788939,1762989041064,-500.0,0.00040515,30]
[393788940,1762989041074,-500.0,0.00040515,30]
[393788941,1762989041083,-7854.26181074,0.00040515,15]
[393788943,1762989041092,-18198.32171583,0.00040515,15]
[393788944,1762989041101,-156.855259,0.00040515,15]
[393788945,1762989041110,-173.72989841,0.00040515,2]
[393788946,1762989041119,-360.84756809,0.00040515,2]
[393788947,1762989041128,-588.63016062,0.00040515,8]
[393788948,1762989041136,-150.0,0.00040524,2]
[393788949,1762989041146,-150.0,0.00040524,2]
[393788950,1762989041155,-150.0,0.00040524,2]
[393788951,1762989041164,-608.0,0.00040524,2]
[393788952,1762989041174,-3427.0,0.00040524,2]
[393788953,1762989041182,-300.0,0.00040562,2]
[393788954,1762989041191,-501.69236665,0.00040573,5]
[393788955,1762989041200,-2000.0,0.00040591,30]
[393788956,1762989041209,-500.0,0.00040595,120]
[393788957,1762989041219,-5000.0,0.000406,120]
[393788958,1762989041228,-150.0,0.000406,60]
[393788959,1762989041237,-500.0,0.000406,7]
[393788960,1762989041247,-400.0,0.000406,14]
[393788961,1762989041256,-500.0,0.00040601,2]
[393788962,1762989041266,-213.15698088,0.00040603,7]
[393788963,1762989041275,-150.25,0.00040605,2]
[393788964,1762989041285,-150.25,0.00040605,2]
[393788965,1762989041295,-150.25,0.00040605,2]
[393788966,1762989041304,-500.0,0.0004061,7]
[393788967,1762989041314,-500.0,0.0004061,7]
[393788968,1762989041323,-500.0,0.0004061,2]
[393788969,1762989041334,-500.0,0.0004061,2]
[393788970,1762989041343,-1249.63166,0.0004061,5]
[393788971,1762989041353,-999.0,0.0004061,120]
[393788972,1762989041364,-300.0,0.00040611,10]
[393788973,1762989041373,-300.0,0.00040611,10]
[393788974,1762989041383,-71319.11035698,0.00040611,7]
[393788975,1762989041393,-366626.7527841,0.00040611,2]
[393788976,1762989041403,-98854.2950837,0.00040611,2]
[393788977,1762989041413,-500.0,0.00040611,7]
[393788978,1762989041423,-500.0,0.00040611,7]
[393788979,1762989041432,-500.0,0.00040611,7]
[393788980,1762989041442,-500.0,0.00040611,7]
[393788981,1762989041452,-500.0,0.00040611,7]
[393788982,1762989041462,-500.0,0.00040611,7]
[393788983,1762989041471,-500.0,0.00040611,2]
[393788984,1762989041481,-159.40146688,0.00040611,2]
[393788985,1762989041491,-151.0,0.00040612,14]
[393788986,1762989041501,-16583.3237564,0.00040612,2]
[393788987,1762989041511,-140607.0073315,0.00040612,2]
[393788988,1762989041521,-200.0,0.00040612,7]
[393788989,1762989041534,-2347.8659052,0.00040612,2]
[393788990,1762989041544,-151.0,0.00040612,120]
[393788991,1762989041554,-152.304365,0.00040612,120]
[393788992,1762989041564,-170.049517,0.00040612,120]
[393788993,1762989041575,-151.822734,0.00040612,120]
[393788994,1762989041585,-151.0,0.00040612,120]
[393788995,1762989041594,-151.0,0.00040612,120]
[393788996,1762989041604,-151.0,0.00040612,120]
[393788997,1762989041614,-151.0,0.00040612,120]
[393788998,1762989041623,-153.311613,0.00040612,120]
[393788999,1762989041633,-200.0,0.00040612,7]
[393789000,1762989041643,-200.0,0.00040612,7]
[393789001,1762989041653,-500.0,0.00040613,2]
[393789002,1762989041663,-500.0,0.00040613,2]
[393789003,1762989041672,-153.742044,0.00040614,120]
[393789004,1762989041682,-151.0,0.00040614,120]
[393789005,1762989041691,-151.0,0.00040614,120]
[393789006,1762989041700,-151.0,0.00040614,120]
[393789007,1762989041710,-151.0,0.00040614,120]
[393789008,1762989041719,-151.0,0.00040614,120]
[393789009,1762989041729,-151.0,0.00040614,120]
[393789010,1762989041738,-151.0,0.00040614,120]
[393789011,1762989041747,-151.0,0.00040614,120]
[393789012,1762989041757,-151.0,0.00040614,120]
[393789013,1762989041767,-151.0,0.00040614,120]
[393789014,1762989041776,-151.0,0.00040614,120]
[393789015,1762989041785,-3879254.42415096,0.00040615,7]
[393789023,1762989043261,-316.47033406,0.00040055,2]
[393789024,1762989043327,-578.28566586,0.00040055,2]
[393789025,1762989043338,-105.24400008,0.00040055,2]
[393789026,1762989043347,-3952.50600017,0.00040615,7]
[393789070,1762989046310,-489.15234643,0.00040615,7]
[393789071,1762989046321,-661.80577966,0.00040615,7]
[393789072,1762989046649,-1509.34266157,0.00040615,7]
[393789073,1762989046661,-3563.18312898,0.00040615,7]
[393789075,1762989046681,-8833.37326065,0.00040615,7]
[393789077,1762989046692,-42831.42949838,0.00040615,7]
[393789078,1762989046704,-10140.47340972,0.00040615,7]
[393789437,1762989133454,277.35679052,0.00040615,30]
[393789470,1762989433761,451.28,0.00013699,2]
[393789471,1762989434041,451.28,0.00020187,2]
[393789472,1762989434268,451.28,0.00026676,2]
[393789476,1762989488581,8459.745422,7.945e-05,2]
[393789479,1762989540496,186.424578,0.00017,2]
[393789480,1762989540518,63.575422,0.00017,2]
[393789481,1762989548784,1540.264578,7.945e-05,2]
[393789482,1762989608308,8459.745422,7.945e-05,2]
[393789487,1762989632624,520.634,0.00040616,30]
[393789493,1762989667953,1378.304297,7.945e-05,2]
[393789497,1762989757769,-150.0,0.0003035,2]
[393789498,1762989757794,-15.0032782,0.00031175,2]
[393789501,1762989786999,302.0,0.00040616,40]
[393789502,1762989833848,-169.7367218,0.00031175,2]
[393789503,1762989833874,-16.20003929,0.00033165,2]
[393789504,1762989833983,348.73145931,0.00040616,30]
[393789505,1762989837622,-186.28594916,0.00033165,2]
[393789506,1762989877707,-248.79401155,0.00033165,2]
[393789507,1762989877732,-51.20598845,0.00033385,119]
[393789508,1762989879307,-207.24434178,0.00033385,119]
[393789510,1762989953931,-217.59100313,0.00033165,2]
[393789511,1762989953956,-41.54966977,0.00033385,119]
[393789512,1762989953981,-116.83313737,0.00033385,119]
[393789513,1762989997727,-183.16686263,0.00033385,119]
[393789514,1762989997748,-13.80657476,0.00034,2]
[393789515,1762990000046,-194.58939095,0.00034,2]
[393789516,1762990012718,-298.79588033,0.00034,2]
[393789517,1762990014246,-205.55741743,0.00034,2]
[393789518,1762990014863,826.94,0.00019315,2]
[393789519,1762990016397,-253.03434629,0.00020292,2]
[393789520,1762990018111,-299.11693874,0.00020292,2]
[393789521,1762990022803,-274.78871497,0.00020292,2]
[393789522,1762990022826,-118.74529851,0.00021268,2]
[393789523,1762990026084,-253.02582709,0.00021268,2]
[393789524,1762990031134,-200.0,0.00021268,2]
[393789525,1762990032903,-182.27789715,0.00021268,2]
[393789526,1762990037393,-72.89097725,0.00021268,2]
[393789527,1762990039495,-195.00000016,0.00022245,2]
[393789528,1762990043008,-154.03410336,0.00022245,2]
[393789529,1762990046117,-157.0,0.00022245,2]
[393789530,1762990053146,-320.90589648,0.00022245,2]
[393789532,1762990072613,10000.01,0.00017,2]
[393789533,1762990072637,10000.01,0.00017,2]
[393789534,1762990072660,10000.01,0.00017,2]
[393789535,1762990072684,10000.01,0.00017,2]
[393789536,1762990072711,10000.01,0.00017,2]
[393789537,1762990072735,10000.01,0.00017,2]
[393789538,1762990072758,10000.01,0.00017,2]
[393789539,1762990072783,10000.01,0.00017,2]
[393789540,1762990072808,10000.01,0.00017,2]
[393789541,1762990072832,10000.01,0.00017,2]
[393789542,1762990072856,38000.0,0.00017,2]
[393789543,1762990073091,49398.29,0.00017,2]
[393789544,1762990073120,429453.30791845,0.00017,2]
[393789545,1762990073150,295700.0,0.00017,2]
[393789546,1762990073177,5000.0,0.00017,2]
[393789547,1762990073517,-255.1647464,0.00017,2]
[393789548,1762990078784,-195.0,0.00017,2]
[393789550,1762990081000,-174.48774531,0.00017,2]
[393789551,1762990084168,-195.0,0.00017,2]
[393789552,1762990087338,-193.0,0.00017,2]
[393789553,1762990087876,-8396.17,0.00017,2]
[393789554,1762990087965,-10000.01,0.00017,2]
[393789555,1762990088116,-10000.01,0.00017,2]
[393789556,1762990088245,-10000.01,0.00017,2]
[393789557,1762990088371,-10000.01,0.00017,2]
[393789558,1762990088806,-10000.01,0.00017,2]
[393789559,1762990089364,565.84422964,0.000135,2]
[393789560,1762990089914,-193.03674943,0.00017,2]
[393789561,1762990092356,-653.41,0.0001699,3]
[393789562,1762990092392,-8693.19,0.00017,2]
[393789563,1762990092550,-10000.01,0.00017,2]
[393789565,1762990092788,-10000.01,0.00017,2]
[393789567,1762990094789,-218.4,0.00017,2]
[393789568,1762990096479,-10000.01,0.00017,2]
[393789569,1762990101046,-358.68384251,0.00017,2]
[393789571,1762990102500,300.0,0.00040616,120]
[393789572,1762990103110,311.1,0.00040616,120]
[393789573,1762990103710,322.6107,0.00040616,120]
[393789574,1762990104264,-214.1459639,0.00017,2]
[393789575,1762990104370,334.5472959,0.00040616,120]
[393789576,1762990104994,334.5472959,0.00040616,120]
[393789578,1762990106072,-10000.01,0.00017,2]
[393789579,1762990106199,-10000.01,0.00017,2]
[393789580,1762990106318,-10000.01,0.00017,2]
[393789581,1762990106434,-10000.01,0.00017,2]
[393789582,1762990106568,-10000.01,0.00017,2]
[393789583,1762990106664,-10000.01,0.00017,2]
[393789584,1762990107050,-218.4,0.00017,2]
[393789592,1762990111654,-185.92881699,0.00017,2]
[393789593,1762990112688,-10000.01,0.00017,2]
[393789594,1762990112941,490.05013836,0.00014999,2]
[393789595,1762990113129,-10000.01,0.00017,2]
[393789596,1762990113239,-10000.01,0.00017,2]
[393789598,1762990114362,-200.0,0.00017,2]
[393789604,1762990116005,-314.06323891,0.00017,2]
[393789606,1762990117743,3944.105632,0.00015,3]
[393789607,1762990117772,43124.83069106,0.00015,3]
[393789608,1762990117803,5000.0,0.00015,3]
[393789612,1762990121640,-10000.01,0.00015,3]
[393789614,1762990121683,-10000.01,0.00015,3]